Workbook

Sheet Cover
A1: PROVINCIAL ADMINISTRATION OF KWAZULU-NATAL
A2: DEPARTMENT OF PUBLIC WORKS
A14: BILLS OF QUANTITIES
A15: with GCC for Construction Works - Second Edition 2010
A17: CONTRACTUAL SECTION
A18: ONE VOLUME APPROACH
A20: PHASE 14: STORM DAMAGED PROGRAMME: REPAIRS AND RENOVATIONS TO STORM DAMAGED SCHOOLS THROUGHOUT THE PROVINCE OF KWAZULU-NATAL: SOUTHERN REGION: CLUSTER 83: INKULU PRIMARY SCHOOL. OPEN BIDS
A22: Engineer/Principal Agent
A23: Ravi Jhupsee Architects cc t/a Architronic
A24: P.O. Box 19393
A25: Dormerton
A26: Durban
A27: 4091
A28: Tel Number: 031 201 3933
A29: Fax Number: 031 201 3930
A30: marvinm@architronic.co.za
A33: Employer: | C33: Region:
A34: Head: Public Works | C34: Head Public Works: Operations
A35: KZN Department of Public Works | C35: KZN Department of Public Works
A36: Private Bag X 9041 | C36: X9041
A37: PIETERMARITZBURG | C37: Pietermaritzburg
A38: 3200 | C38: 3200
A39: Tel Number: 033 - 355 5569 | C39: Tel Number: | D39: 033 - 355 5569
A40: Fax Number: N/A | C40: Fax Number: | D40: N/A
A42: Tender Number: ZNTM01197W | C42: Project Code: | D42: 063258
A43: CIDB Grading: 6GB OR HIGHER | C43: Document Date: | D43: 18 January 2024
A44: ECDP Number: N/A
A46: Contracting Party: __________________________________________________________________________
A47: CIDB Registration number: | C47: ______________________________________
A48: Central Suppliers Database Registration Number: | C48: ______________________________________

Sheet Inkulu PS - BOQ
A1: ITEM NO | B1: DESCRIPTION | C1: UNIT | D1: QUANTITY | E1: RATE | F1: AMOUNT
B3: BILL NO. 1
B5: PRELIMINARIES
A7: 1 | B7: Preliminaries | C7: Item | D7: 1 | F7: =D7*E7 -> 0
A9: Bill No. 1 | B9: Carried to Summary | F9: =SUM(F6:F8) -> 0
B11: BILL NO. 2
B13: ALTERATIONS (PROVISIONAL)
B15: (CPAP WORK GROUP NO. 102 UNLESS OTHERWISE STATED)
B17: Key: Location Description A Block A (Admin & 2 classroom) B Block B (2 classroom) C Block C (4 classroom) D Block D (3 classroom) E Kitchen F External works G General
B19: PREAMBLES
B21: The tenderer is referred to the relevant clauses in the Standard Preambles for Trades 2008 which are incorporated at the back of these Bills of Quantities.
B23: SUPPLEMENTARY PREAMBLES
B25: View site:
B27: Before submitting his tender the contractor shall visit the site and satisfy himself as to the nature and extent of the work to be done and the value of the materials contained in the buildings or portions of the buildings to be demolished. No claim for any variations of the contract sum in respect of the nature and extent of the work or of inferior or damaged materials will be entertained
B29: Damage to existing finishes:
B31: The Contractor will be held responsible for all damage, however caused, to existing finishes and fittings etc. and he must make good all damage at his own expense to the approval of the Principal Agent
B33: Breaking down, demolition and alteration activities and tasks, hacking off of existing plaster, etc. is to be executed with care so as to prevent damage to remaining floor and wall surfaces and finishes (where these are to be retained). Tenders will be deemed to include allowance for any necessary protection of existing surfaces and structures as may be necessary to effect the above, as the cost of repairing damage to existing surfaces and structures will be solely for the Contractors account
B35: Responsibility for site:
B37: The contractor is to note that upon possession of the site by himself, and extending until practical completion is achieved, he is solely responsible for the site, site security, general upkeep and cleaning of the site and all other responsibilities in maintaining a construction site in conformance with but not limited to, the Construction Regulations 2003, all local by-laws, all user client regulations, and all Client regulations and procedures. Tenderers are therefore urged to study all available material and to investigate fully the site and areas contiguous to the site, in order to determine the range and extent of responsibility. No additional monetary and/or time claims will be entertained in respect of the above
B39: Explosives :
B41: No explosives whatsoever may be used for demolition purposes unless otherwise stated
B43: General:
B45: The contract shall carry out the whole of the works with as little mess and noise as possible and with a minimum of disturbance to adjoining classroom blocks and their students. He shall provide proper protection and provide, erect and remove when directed, any temporary tapaulins that may be necessary during the progress of the works, or to the satisfaction of the principal agent
B47: Water supply pipes and other piping that may be encountered and found necessary to disconnect or cut, shall be effectually stopped off or grubbed up and removed, and any new connections that may be necessary shall be made with proper fittings, to the satisfaction of the principal agent
B49: Prices for taking out of doors, windows, etc. shall include for removal of all beads, architraves, ironmongery, etc
B51: Prices for taking out and removing doors and frames shall include for removing door stops, cabin hooks, etc. and making good floor and wall finishes to match existing
B53: With regard to building up of openings in existing walls, cement screeds and pavings, granolithic, tops of walls, etc., shall be levelled and prepared for raising of brickwork
B55: Making good of finishes shall include making good of the brick and concrete surfaces onto which the new finishes are applied, where necessary
B57: The contractor will be required to take all dimensions affecting the existing buildings on the site and he will be held solely responsible for the accuracy of all such dimensions where used in the manufacture of new items (doors, windows, fittings, etc.)
B59: Removal of materials:
B61: Where removal is included in the heading, sub-heading or item description, prices shall be deemed to include for the necessary costs in removal and appropriate disposal of materials including but not limited to labour, transportation and disposal costs. No further claims in this regard will be entertained
B63: Removal of asbestos material:
B65: All preparatory work, alterations, etc., to existing asbestos cement roof sheeting, gutters, rainwater pipes, etc., is to be carried out strictly by an approved and certified specialist company and in accordance with statutory requirements (Occupational Health and Safety Act, 1993 - Asbestos Regulations 2001) and all necessary precautions must be taken when working with and disposing of asbestos cement products and the disposing of waste water resulting from cleaning operations, etc
B67: The following shall apply in respect of asbestos removal:
B69: The removal of asbestos shall be carried out by a certified entity, registered in accordance with the Occupational Health and Safety Act 1993 and the Asbestos Regulation 2001. Asbestos in all forms/building elements that is to be removed, shall be carried out in strict accordance with aforementioned regulation, and a certificate issued by the entity as contemplated in the above, shall be provided per block for the removal thereof, where the term block shall in this context refer to any single, free standing building structure, regardless of size or purpose. Corresponding disposal certificates shall be issued by the facility at which the asbestos is disposed off, with said facility to, prior to the disposal of any asbestos material provide satisfactory proof that the facility is duly registered and fully compliant in terms of the act, to receive the asbestos material. Under no circumtances is the contractor nor any of his duly authorised representatives to sell and/or give away asbestos material to any member/s of the school community, the community in general or the public at large. Should this be found to be occuring, the contractor will be held responsible contractually and may further be prosecuted criminally. The cost for complying with the above, and all requirements of regulation as reflected above is to be priced for in the items for removal of asbestos material. No further claims in this regard will therefore be entertained
B71: In achieving compliance in respect of asbestos removal, and in order to promote and ensure safety of the environment for school users, the contractor will be required to appoint and maintain the presence of an Approved Inspection Authority to monitor and report on asbestos removal and to certify all aspects related to same including method, volume removed, volume disposed of, etc.Provision for same has been made in these bills of quantities. The contractor is to note that should he fail to appoint an independent AIA, any and all consequent delays and damages will be for his own account.
B73: TEMPORARY BARRIERS, SCREENS, ETC
B75: Temporary parkhome units
B77: Provide temporary parkhomes on site for educational facilities during the construction phase as herewith measured, including levelling, positioning on site and connection to an electrical supply including issuing compliance certificates
B79: Parkhomes are to be standard classroom size minimum 7 x 7m or nearest size
A81: 1 | B81: Provision of parkhome for a period of 8 months | C81: No | D81: 5 | F81: =D81*E81 -> 0
A83: 2 | B83: Provision of two tier steps for 8 months | C83: No | D83: 5 | F83: =D83*E83 -> 0
A85: 3 | B85: Provision of electrical compliance certificates for parkhomes | C85: No | D85: 5 | F85: =D85*E85 -> 0
A87: 4 | B87: Transport to and from site of parkhomes as per distance between supplier and site per return trip | C87: TRIP | D87: 5 | F87: =D87*E87 -> 0
B89: TEMPORARY ROOF PROTECTION
B91: The Contractor will be held responsible for all damage, howsoever caused, to finishes inside rooms where the existing roof coverings have been removed and he must make good all damage at his own expense to the approval of the Employer
A93: 5 | B93: Supply and install temporary waterproofing and weatherproof protection to buildings in the form of uPVC underlay or tarpaulin where roofing and related items have been removed during construction whereby exposing buildings, including the relocation of the protection to various blocks within the works as area. The contractor to allow for maintenance of the waterproofing during periods of exposure to classrooms as well the reuse and reallocation to the blocks as per the contracts construction programme. All double handling will be deemed to be included in the rates based on the contractor's tender stage construction programme | C93: m2 | D93: 617 | F93: =D93*E93 -> 0
B95: REMOVAL OF EXISTING WORK
B97: Breaking up and removing reinforced concrete including cutting off and removing reinforcement and cart away
A99: 6 | B99: 100mm Thick surface beds | C99: m2 | D99: 789 | F99: =D99*E99 -> 0
B101: Taking out and removing doors, windows, etc., including thresholds, sills, etc. (building up openings and making good finishes elsewhere)
A103: 7 | B103: Timber single door and frame size 900 x 2100mm high | C103: No | D103: 14 | F103: =D103*E103 -> 0
B105: Note: Tenderers are referred to the foregoing supplementary preambles within this trade when pricing the following item (removal of asbestos)
B107: Taking down and removal of Asbestos by Specialist
A109: 8 | B109: Pitched asbestos roof 16 000 x 10 000 x 1500mm high overall including roof covering, timber trusses and purlins, ceilings and cornices, eaves soffit covering, fascias, barge boards, gutters and rainwater pipes | C109: No | D109: 1 | F109: =D109*E109 -> 0
A111: 9 | B111: Pitched asbestos roof 15 000 x 11 000 x 1500mm high overall including roof covering, timber trusses and purlins, ceilings and cornices, eaves soffit covering, fascias, barge boards, gutters and rainwater pipes | C111: No | D111: 1 | F111: =D111*E111 -> 0
B113: Taking down and removing roofs, floors, panelling, ceilings, partitions, etc
A115: 10 | B115: Pitched corrugated iron roof 24 000 x 10 000 x 800mm high overall including roof covering, timber trusses and purlins, eaves soffit covering, fascias, barge boards, gutters and rainwater pipes | C115: No | D115: 1 | F115: =D115*E115 -> 0
A117: 11 | B117: Pitched corrugated iron roof 32 000 x 10 000 x 800mm high overall including roof covering, timber trusses and purlins, eaves soffit covering, fascias, barge boards, gutters and rainwater pipes | C117: No | D117: 1 | F117: =D117*E117 -> 0
A119: 12 | B119: Pitched corrugated iron roof 29 000 x 12 000 x 800mm high overall including roof covering, timber trusses and purlins, eaves soffit covering, fascias, barge boards, gutters and rainwater pipes | C119: No | D119: 1 | F119: =D119*E119 -> 0
B121: Taking out and removing glass and mirrors
A123: 13 | B123: Glass from steel windows including cleaning out rebates and preparing for new glass | C123: m2 | D123: 5 | F123: =D123*E123 -> 0
B125: Taking out and removing ironmongery
A127: 14 | B127: Make good existing glazed steel window approximately 900mm x 1200mm high including sanding down thoroughly, applying metal primer and two coats gloss enamel paint, replacing broken glazing, overhauling, adjusting and servicing existing ironmongery to leave complete unit in a perfect condition | C127: No | D127: 58 | F127: =D127*E127 -> 0
A129: 15 | B129: Remove existing chalkboards approximately 4800 x 1200mm high, including fixings, etc. and cart off site | C129: No | D129: 9 | F129: =D129*E129 -> 0
A131: 16 | B131: Remove existing pinning board approximately 1800 x 2800mm high, including fixings, etc. and cart off site | C131: No | D131: 9 | F131: =D131*E131 -> 0
B133: Hacking up/off and removing granolithic, screeds, plaster, etc from concrete or brickwork and preparing surfaces for new screeds, plaster, etc
A135: 17 | B135: 25mm Screed from floors | C135: m2 | D135: 165 | F135: =D135*E135 -> 0
B137: MAKING GOOD OF FINISHES ETC
A139: 18 | B139: Remove 100mm width of plaster on either side of crack, rake out crack: 6mm X 6mm deep, clean out all loose material and repair crack using Prostruct 506 Flexicoat polymer modified cementitious coating or similar approved, to Manufacturer’s specification | C139: m | D139: 75 | F139: =D139*E139 -> 0
B141: Making good untinted granolithic
A143: 19 | B143: Floors in patches | C143: m2 | D143: 165 | F143: =D143*E143 -> 0
B145: Making good internal cement plaster
A147: 20 | B147: Walls in patches | C147: m2 | D147: 541 | F147: =D147*E147 -> 0
B149: Making good external cement plaster
A151: 21 | B151: Walls in patches | C151: m2 | D151: 288 | F151: =D151*E151 -> 0
A153: Bill No. 2 | B153: Carried to Summary | F153: =SUM(F72:F152) -> 0
B155: BILL NO. 3
B157: EARTHWORKS (PROVISIONAL)
B159: (CPAP WORK GROUP NO. 104 UNLESS OTHERWISE STATED)
B161: Key: Location Description A Block A (Admin & 2 classroom) B Block B (2 classroom) C Block C (4 classroom) D Block D (3 classroom) E Kitchen F External works G General
B163: PREAMBLES
B165: The tenderer is referred to the relevant clauses in the Standard Preambles for Trades 2008 which are incorporated at the back of these Bills of Quantities.
B167: SUPPLEMENTARY PREAMBLES
B169: Nature of ground
B171: The nature of the ground is assumed to be loose sandy material, therefore 'earth', but possibly interspersed with 'soft rock' or 'hard rock'
B173: Excavation for working space in rock
B175: Notwithstanding clause 11 page 8 of the Standard System of Measuring Building Work, excavation for working space in rock will be measured in cubic metres to the extent executed and given as 'extra over' bulk excavation or trench and hole excavation as the case may be
B177: Carting away of excavated material
B179: Descriptions of carting away of excavated material shall be deemed to include loading excavated material onto trucks directly from the excavations or, alternatively, from stock piles situated on the building site
B181: Filling
B183: Notwithstanding the reference to prescribed multiple handling in clause 1 page 6 of the Standard System of Measuring Building Work, prices for filling and backfilling shall include for all selection and any necessary multiple handling of material
B185: Testing
B187: Prices for filling are to include for all necessary density tests in accordance with SANS 10400
B189: EXCAVATION, FILLING, ETC OTHER THAN BULK
B191: Excavation in earth not exceeding 2m deep
A193: 1 | B193: Reduced levels under floors | C193: m3 | D193: 118 | F193: =D193*E193 -> 0
B195: Extra over trench and hole excavations in earth for excavation in
A197: 2 | B197: Soft rock | C197: m3 | D197: 11 | F197: =D197*E197 -> 0
B199: Extra over all excavations for carting away
A201: 3 | B201: Surplus material from excavations and/or stock piles on site to a dumping site to be located by the contractor | C201: m3 | D201: 118 | F201: =D201*E201 -> 0
B203: Earth filling supplied by the contractor compacted to 98% Mod AASHTO density
A205: 4 | B205: G5 material under floors | C205: m3 | D205: 118 | F205: =D205*E205 -> 0
B207: Compaction of surfaces
A209: 5 | B209: Compaction of ground surface under floors etc including scarifying for a depth of 150mm, breaking down oversize material, adding suitable material where necessary and compacting to 95% Mod AASHTO density | C209: m2 | D209: 789 | F209: =D209*E209 -> 0
B211: Prescribed density tests on filling
A213: 6 | B213: "Modified AASHTO Density" test | C213: No | D213: 8 | F213: =D213*E213 -> 0
B215: SOIL POISONING
B217: Soil insecticide
A219: 7 | B219: Under floors etc including forming and poisoning shallow furrows against foundation walls etc, filling in furrows and ramming | C219: m2 | D219: 789 | F219: =D219*E219 -> 0
A221: Bill No. 3 | B221: Carried to Summary | F221: =SUM(F185:F220) -> 0
B223: BILL NO. 4
B225: CONCRETE, FORMWORK AND REINFORCEMENT
B227: (CPAP WORK GROUP NO. 110 UNLESS OTHERWISE STATED)
B229: Key: Location Description A Block A (Admin & 2 classroom) B Block B (2 classroom) C Block C (4 classroom) D Block D (3 classroom) E Kitchen F External works G General
B231: PREAMBLES
B233: The tenderer is referred to the relevant clauses in the Standard Preambles for Trades 2008 which are incorporated at the back of these Bills of Quantities.
B235: SUPPLEMENTARY PREAMBLES
B237: Cost of tests
B239: The costs of making, storing and testing of concrete test cubes as required under clause 7 Tests of SABS 1200 G shall include the cost of providing cube moulds necessary for the purpose, for testing costs and for submitting reports on the tests to the principal agent. The testing shall be undertaken by an independent firm or institution nominated by the contractor to the approval of the principal agent. (Test cubes are measured separately)
B241: Formwork
B243: Descriptions of formwork shall be deemed to include use and waste only (except where described as 'left in' or 'permanent'), for fitting together in the required forms, wedging, plumbing and fixing to true angles and surfaces as necessary to ensure easy release during stripping and for reconditioning as necessary before reuse.The vertical strutting shall be carried down to such construction as is sufficiently strong to afford the required support without damage and shall remain in position until the newly constructed work is able to support itself. Formwork to soffits of solid slabs etc. shall be deemed to be to slabs not exceeding 250mm thick unless otherwise described. Formwork to soffits of slabs, beams, etc. shall be deemed to be propped up exceeding 1,5m and not exceeding 3,5m high unless otherwise described.Formwork to sides of bases, pile caps, ground beams, etc. will only be measured where it is prescribed by the engineer for design reasons. Formwork necessitated by irregularity or collapse of excavated faces will not be measured and the cost thereof shall be deemed to be included in the allowance for taking the risk of collapse of the sides of the excavations, provision for which is made in Earthworks.
B245: REINFORCED CONCRETE CAST AGAINST EXCAVATED SURFACES
B247: 25MPa/19mm concrete
A249: 1 | B249: Surface beds and thickenings, etc cast in panels on waterproofing | C249: m3 | D249: 79 | F249: =D249*E249 -> 0
B251: TEST BLOCKS
A253: 2 | B253: Making and testing 150 x 150 x 150mm concrete strength test cube (Provisional) | C253: Sets | D253: 4 | F253: =D253*E253 -> 0
B255: CONCRETE SUNDRIES
B257: Finishing top surfaces of concrete smooth with a power float
A259: 3 | B259: Surface beds, slabs, etc to falls | C259: m2 | D259: 789 | F259: =D259*E259 -> 0
B261: MOVEMENT JOINTS ETC
B263: Two sheets of masonite with smooth surfaces as slip joints between horizontal concrete and brick surfaces including cement mortar bed
A265: 4 | B265: Not exceeding 300mm wide | C265: m | D265: 161 | F265: =D265*E265 -> 0
B267: Expansion joints with bitumen impregnated softboard between vertical concrete and brick surfaces
A269: 5 | B269: 12mm Joints not exceeding 300mm high | C269: m | D269: 177 | F269: =D269*E269 -> 0
B271: Saw cut joints
A273: 6 | B273: 5 x 30mm Saw cut joints in top of concrete | C273: m | D273: 92 | F273: =D273*E273 -> 0
B275: REINFORCEMENT (PROVISIONAL) (CPAP WORK Group No. 114)
B277: Fabric reinforcement
A279: 7 | B279: Type Ref. 193 fabric reinforcement in concrete surface beds, slabs, etc | C279: m2 | D279: 789 | F279: =D279*E279 -> 0
A281: Bill No. 4 | B281: Carried to Summary | F281: =SUM(F245:F280) -> 0
B283: BILL NO. 5
B285: MASONRY
B287: (CPAP WORK GROUP NO. 116 UNLESS OTHERWISE STATED)
B289: Key: Location Description A Block A (Admin & 2 classroom) B Block B (2 classroom) C Block C (4 classroom) D Block D (3 classroom) E Kitchen F External works G General
B291: PREAMBLES
B293: The tenderer is referred to the relevant clauses in the Standard Preambles for Trades 2008 which are incorporated at the back of these Bills of Quantities.
B295: SUPPLEMENTARY PREAMBLES
B297: Proprietary items or materials
B299: Proprietary items or materials where specified are to be of the brand specified or other approved by the Representative / Agent
B301: BRICKWORK
B303: Sizes in description:
B305: Where sizes in descriptions are given in brick units, 'one brick' shall represent the length and 'half brick' the width of a brick
B307: Hollow walls:
B309: Descriptions of hollow walls shall be deemed to include leaving every fifth perpend of the bottom course of the external skin open as a weep hole
B311: Bagged and sealed walls:
B313: Walls in two skins described as 'bagged and sealed' shall be deemed to include having the outer face of the inner skin bagged with 1:6 cement and sand mixture and sealed with two coats bitumen emulsion waterproofing coating
B315: Face bricks:
B317: Bricks shall be ordered timeously to obtain uniformity in size and colour
B319: Pointing:
B321: Descriptions of recessed pointing to fair face brickwork and face brickwork shall be deemed to include square recessed, hollow recessed, weathered pointing, etc.
B323: SUPERSTRUCTURE
B325: Brickwork of NFP bricks in class II mortar
A327: 1 | B327: One brick walls | C327: m2 | D327: 231 | F327: =D327*E327 -> 0
B329: BRICKWORK SUNDRIES
B331: Brickwork reinforcement
A333: 2 | B333: 150mm Wide reinforcement built in horizontally | C333: m | D333: 736 | F333: =D333*E333 -> 0
B335: Galvanised wire ties etc.
A337: 3 | B337: 4mm Diameter roof tie 2000mm girth bent double, with one end shot pinned to concrete beam and the other end fixed to timber | C337: No | D337: 222 | F337: =D337*E337 -> 0
A339: Bill No. 5 | B339: Carried to Summary | F339: =SUM(F321:F338) -> 0
B341: BILL NO. 6
B343: WATERPROOFING
B345: (CPAP WORK GROUP NO. 120 UNLESS OTHERWISE STATED)
B347: Key: Location Description A Block A (Admin & 2 classroom) B Block B (2 classroom) C Block C (4 classroom) D Block D (3 classroom) E Kitchen F External works G General
B349: PREAMBLES
B351: The tenderer is referred to the relevant clauses in the Standard Preambles for Trades 2008 which are incorporated at the back of these Bills of Quantities.
B353: SUPPLEMENTARY PREAMBLES
B355: Proprietary items or materials
B357: Proprietary items or materials where specified are to be of the brand specified or other approved by the Representative / Agent
B359: DAMP-PROOFING OF WALLS AND FLOORS
B361: One layer of 375 micron "Consol Plastics Brikgrip DPC" or equally approved embossed damp proof course
A363: 1 | B363: In walls | C363: m2 | D363: 15 | F363: =D363*E363 -> 0
B365: One layer of 250 micron "Consol Plastics Gunplas USB Green" or equally approved waterproof sheeting sealed at laps with "Gunplas Pressure Sensitive Tape"
A367: 2 | B367: Under surface beds | C367: m2 | D367: 789 | F367: =D367*E367 -> 0
B369: JOINT SEALANTS ETC
B371: Two-part grey polysulphide sealing compound including backing cord, bond breaker, primer, etc
A373: 3 | B373: 5 x 10mm In saw cut joints in floors | C373: m | D373: 92 | F373: =D373*E373 -> 0
A375: 4 | B375: 12 x 12mm In expansion joints in floors including raking out expansion joint filler as necessary | C375: m | D375: 177 | F375: =D375*E375 -> 0
A377: Bill No. 6 | B377: Carried to Summary | F377: =SUM(F359:F376) -> 0
B379: BILL NO. 7
B381: ROOF COVERINGS ETC
B383: (CPAP WORK GROUP NO. 124 UNLESS OTHERWISE STATED)
B385: Key: Location Description A Block A (Admin & 2 classroom) B Block B (2 classroom) C Block C (4 classroom) D Block D (3 classroom) E Kitchen F External works G General
B387: PREAMBLES
B389: The tenderer is referred to the relevant clauses in the Standard Preambles for Trades 2008 which are incorporated at the back of these Bills of Quantities.
B391: SUPPLEMENTARY PREAMBLES
B393: Proprietary items or materials
B395: Proprietary items or materials where specified are to be of the brand specified or other approved by the Representative / Agent
B397: Sheeting:
B399: The roof sheeting shall be 0.58mm thick full hard IBR profile galvanised mild steel or other approved roof sheets, roll formed in continuous lengths and cut to length by a pneumatic cut-off process. A certificate verifying compliance to all current SANS codes in respect to galvanised sheeting shall be issued by the manufacturer
... 711 more rows
